bitfinex/quotes_BTCUSD_20250423
["timestamp","ask_amount","ask_price","bid_price","bid_amount"]
[1745368760131,0.004,93087.0,93086.0,0.00752612]
[1745368761017,0.41314058,93101.0,93087.0,0.06445583]
[1745368761224,0.41314058,93101.0,93090.0,0.01074229]
[1745368761440,0.41314058,93101.0,93089.0,0.07519653]
[1745368761651,0.00114059,93101.0,93094.0,0.06445095]
[1745368761872,0.00114059,93101.0,93095.0,0.00092814]
[1745368762090,0.00114059,93101.0,93095.0,0.00845426]
[1745368762304,0.002,93096.0,93095.0,0.00845426]
[1745368762730,0.001,93096.0,93095.0,0.00845426]
[1745368762946,0.008,93096.0,93095.0,0.00092814]
[1745368763154,0.007,93096.0,93095.0,0.00092814]
[1745368763563,0.008,93096.0,93095.0,0.00092814]
[1745368763851,0.008,93096.0,93095.0,0.00092817]
[1745368764111,0.002,93096.0,93095.0,0.00092817]
[1745368764321,0.0466,93119.0,93095.0,0.00092817]
[1745368764322,0.41199999,93122.0,93113.0,0.01073963]
[1745368764538,0.0008498,93128.0,93117.0,0.01073917]
[1745368764761,0.00012089,93122.0,93120.0,0.06443265]
[1745368764994,0.00012089,93122.0,93121.0,0.00092695]
[1745368765221,0.00012089,93122.0,93121.0,0.00844613]
[1745368765651,0.00412089,93122.0,93121.0,0.00844613]
[1745368766095,0.0008498,93128.0,93121.0,0.00844613]
[1745368766096,0.0008498,93128.0,93127.0,0.06442814]
[1745368766326,0.0008498,93128.0,93127.0,0.06535438]
[1745368766950,0.0008498,93128.0,93127.0,0.07287356]
[1745368768286,0.0008498,93128.0,93127.0,0.07587356]
[1745368768491,0.0058498,93128.0,93127.0,0.07687356]
[1745368770077,0.0058498,93128.0,93127.0,0.07594732]
[1745368770550,0.0058498,93128.0,93127.0,0.01151918]
[1745368770973,0.16015285,93128.0,93127.0,0.01251918]
[1745368771622,0.16015285,93128.0,93127.0,0.005]
[1745368775542,0.11415285,93128.0,93127.0,0.005]
[1745368782019,0.0058498,93128.0,93127.0,0.005]
[1745368782229,0.0058498,93128.0,93127.0,0.00592655]
[1745368782442,0.0058498,93128.0,93127.0,0.01341111]
[1745368783094,0.0058498,93128.0,93127.0,0.01248456]
[1745368783895,0.0058498,93128.0,93127.0,0.005]
[1745368785704,0.0058498,93128.0,93127.0,0.00592631]
[1745368786354,0.0058498,93128.0,93127.0,0.005]
[1745368787096,0.0058498,93128.0,93127.0,0.01249355]
[1745368787726,0.0058498,93128.0,93127.0,0.005]
[1745368787941,0.0058498,93128.0,93127.0,0.00592631]
[1745368788156,0.0058498,93128.0,93127.0,0.07035445]
[1745368788583,0.0058498,93128.0,93120.0,0.01454085]
[1745368788717,0.0058498,93128.0,93127.0,0.06442814]
[1745368788953,0.0008498,93134.0,93128.0,0.01454085]
[1745368789155,0.0008498,93134.0,93132.0,0.01454085]
[1745368789330,0.0008498,93134.0,93133.0,1.01725585]
[1745368789553,0.0008498,93134.0,93133.0,1.01825585]
[1745368789782,0.0008498,93134.0,93133.0,1.02575733]
[1745368790204,0.0008498,93139.0,93138.0,0.06442053]
[1745368790820,0.0008498,93139.0,93138.0,0.10465657]
[1745368791076,0.0008498,93139.0,93138.0,0.11215805]
[1745368791310,0.0008498,93139.0,93138.0,0.11315805]
[1745368792694,0.0068498,93139.0,93138.0,0.11415805]
[1745368793759,0.0068498,93139.0,93138.0,0.04973752]
[1745368795495,0.22158261,93139.0,93138.0,0.04973752]
[1745368795907,0.0068498,93139.0,93138.0,0.04973752]
[1745368796374,0.3325698,93139.0,93138.0,0.04973752]
[1745368796585,0.32988566,93139.0,93138.0,0.04973752]
[1745368801573,0.37608566,93139.0,93138.0,0.00950148]
[1745368801767,0.37608566,93139.0,93138.0,0.002]
[1745368802193,0.37008566,93139.0,93138.0,0.001]
[1745368802634,0.37908566,93139.0,93138.0,0.002]
[1745368802854,0.37908566,93139.0,93138.0,0.001]
[1745368803054,0.21474434,93134.0,93133.0,0.001]
[1745368803251,0.32573195,93134.0,93133.0,0.001]
[1745368803494,0.32304739,93134.0,93133.0,0.001]
[1745368804012,0.36824739,93134.0,93133.0,0.001]
[1745368804217,0.37124739,93134.0,93133.0,0.001]
[1745368804861,0.37024739,93134.0,93133.0,0.001]
[1745368805655,0.37724739,93134.0,93133.0,0.002]
[1745368806389,0.37424739,93134.0,93133.0,0.002]
[1745368806833,0.37724739,93134.0,93133.0,0.002]
[1745368808629,0.83424738,93134.0,93133.0,0.002]
[1745368808854,0.83424738,93134.0,93083.0,0.10164]
[1745368808855,0.01073929,93116.0,93113.0,0.03902449]
[1745368809073,0.01073929,93116.0,93095.0,0.0004247]
[1745368809074,0.01074056,93105.0,93095.0,0.0004247]
[1745368809298,0.01074033,93107.0,93095.0,0.0004247]
[1745368809503,0.21748728,93109.0,93096.0,0.00751348]
[1745368809749,0.01074021,93108.0,93096.0,0.00751348]
[1745368809942,0.00974033,93107.0,93096.0,0.04643602]
[1745368810146,0.01074021,93108.0,93097.0,0.00751348]
[1745368810361,0.01074033,93107.0,93097.0,0.00751348]
[1745368810785,0.01074044,93106.0,93097.0,0.28057466]
[1745368811000,0.01074044,93106.0,93098.0,0.00751348]
[1745368811215,0.01074033,93107.0,93098.0,0.00751348]
[1745368811675,0.01074044,93106.0,93099.0,0.00751348]
[1745368812576,0.01074021,93108.0,93100.0,0.00751348]
[1745368812822,0.001,93107.0,93100.0,0.00751348]
[1745368813245,0.01074021,93108.0,93101.0,0.00751348]
[1745368813728,0.01174044,93106.0,93101.0,0.00751348]
[1745368813935,0.01174044,93106.0,93102.0,0.00751348]
[1745368814144,0.001,93106.0,93102.0,0.00751348]
[1745368814770,0.01074033,93107.0,93102.0,0.00751348]
[1745368814980,0.01174033,93107.0,93103.0,0.00751348]
[1745368815219,0.01074044,93106.0,93103.0,0.00751348]
[1745368815637,0.01074044,93106.0,93104.0,0.00751348]
[1745368815846,0.002,93106.0,93104.0,0.00751348]
[1745368816256,0.01074033,93107.0,93104.0,0.00751348]
[1745368816446,0.01074033,93107.0,93096.0,0.03904343]
[1745368816682,0.003,93106.0,93096.0,0.03904343]
[1745368817311,0.003,93106.0,93097.0,0.00749938]
[1745368817731,0.01074113,93100.0,93097.0,0.00749938]
[1745368817949,0.01074113,93100.0,93098.0,0.00749938]
[1745368818163,0.37541362,93099.0,93098.0,0.00749938]
[1745368818373,0.42142812,93099.0,93098.0,0.00749938]
[1745368818587,0.43216937,93099.0,93096.0,0.00112089]
[1745368818813,0.21482969,93097.0,93096.0,0.00112089]
[1745368819039,0.32313274,93097.0,93096.0,0.00112089]
[1745368819266,0.83343273,93097.0,93096.0,0.00012089]
[1745368819471,0.0983,93096.0,93084.0,0.0004247]
[1745368819685,0.20660305,93096.0,93084.0,0.0004247]
[1745368820466,0.20928917,93096.0,93084.0,0.0004247]
[1745368820687,0.31315738,93085.0,93084.0,0.0004247]
[1745368820841,0.83346042,93085.0,93084.0,0.00056529]
[1745368822166,0.84046042,93085.0,93084.0,0.00056529]
[1745368822592,0.84046042,93085.0,93079.0,0.0402013]
[1745368822593,0.01074379,93077.0,93061.0,0.34]
[1745368822808,0.1109892,93076.0,93061.0,0.34]
[1745368823221,0.1109892,93076.0,93061.0,0.38016914]
[1745368824185,0.01074402,93075.0,93061.0,0.38016914]
[1745368824399,0.1109892,93074.0,93061.0,0.38116914]
[1745368824782,0.1109892,93074.0,93061.0,0.39091477]
[1745368824981,0.1109892,93074.0,93061.0,0.38016914]
[1745368825199,0.1109892,93074.0,93062.0,0.01074552]
[1745368825532,0.10830305,93074.0,93061.0,0.39091477]
[1745368825738,0.10830305,93074.0,93061.0,0.38116914]
[1745368825943,0.10830305,93074.0,93061.0,0.39291477]
[1745368826149,0.10830305,93074.0,93061.0,0.39191477]
[1745368826352,0.10830305,93074.0,93062.0,0.001]
[1745368826739,0.10830305,93074.0,93061.0,0.39191477]
[1745368827193,0.01074229,93090.0,93071.0,0.01074448]
[1745368827414,0.001,93074.0,93071.0,0.07521089]
[1745368827621,0.001,93074.0,93073.0,0.06446552]
[1745368827833,0.00014054,93085.0,93083.0,0.06445818]
[1745368828014,0.00014054,93085.0,93079.0,0.01074356]
[1745368828261,0.00014054,93085.0,93077.0,0.01074379]
[1745368828492,0.00014054,93085.0,93076.0,0.34]
[1745368829500,0.00014054,93085.0,93076.0,0.3507439]
[1745368829920,0.00014054,93085.0,93076.0,0.34]
[1745368830135,0.41546274,93084.0,93072.0,0.34]
[1745368830355,0.01074321,93082.0,93076.0,0.001]
[1745368830568,0.21487354,93078.0,93076.0,0.001]
[1745368830776,0.1109892,93077.0,93076.0,0.001]
[1745368831539,0.0107439,93076.0,93061.0,0.38016914]
[1745368831769,0.1109892,93075.0,93061.0,0.38016914]
[1745368833332,0.1109892,93075.0,93061.0,0.04116914]
[1745368833530,0.1109892,93075.0,93061.0,0.04216914]
[1745368833948,0.1109892,93075.0,93061.0,0.04116914]
[1745368834405,0.01074413,93074.0,93061.0,0.04216914]
[1745368834618,0.11098934,93073.0,93061.0,0.04216914]
[1745368834843,0.11098934,93073.0,93065.0,0.01074517]
[1745368835063,0.10830305,93073.0,93063.0,0.0107454]
[1745368835278,0.001,93075.0,93063.0,0.0107454]
[1745368836314,0.01342922,93082.0,93064.0,0.01074529]
[1745368836562,0.10830305,93081.0,93064.0,0.01074529]
[1745368836823,0.001,93074.0,93071.0,0.34]
[1745368837248,0.00268599,93080.0,93071.0,0.34]
[1745368837456,0.001,93075.0,93071.0,0.34]
[1745368837637,0.001,93075.0,93070.0,0.0107446]
[1745368837843,0.001,93075.0,93072.0,0.01074436]
[1745368838044,0.00014054,93085.0,93073.0,0.01074425]
[1745368838248,0.10830305,93084.0,93073.0,0.01074425]
[1745368838897,0.00014054,93085.0,93077.0,0.01074379]
[1745368839110,0.00014054,93085.0,93074.0,0.01074413]
[1745368839590,0.00014054,93085.0,93075.0,0.01074402]
[1745368839795,0.001,93084.0,93076.0,0.0107439]
[1745368840215,0.00314054,93085.0,93076.0,0.0107439]
[1745368840438,0.00514054,93085.0,93074.0,0.001]
[1745368840666,0.10830305,93084.0,93074.0,0.001]
[1745368840878,0.10830305,93084.0,93071.0,0.35074448]
[1745368841093,0.0467,93081.0,93076.0,0.001]
[1745368841300,0.12173251,93080.0,93076.0,0.001]
[1745368842099,0.11098907,93080.0,93076.0,0.001]
[1745368842303,0.11098907,93080.0,93063.0,0.0107454]
[1745368842533,0.11098907,93080.0,93074.0,0.001]
[1745368842534,0.12173251,93080.0,93074.0,0.001]
[1745368842912,0.12173251,93080.0,93061.0,0.39091477]
[1745368843323,0.01074367,93078.0,93076.0,0.001]
[1745368843536,0.1109892,93077.0,93076.0,0.001]
[1745368843761,0.12173299,93077.0,93076.0,0.00751675]
[1745368844173,0.33660884,93077.0,93076.0,0.00751675]
[1745368844385,0.37932269,93077.0,93076.0,0.00751675]
[1745368845109,0.01074425,93073.0,93061.0,0.04216914]
[1745368845311,0.11098934,93072.0,93061.0,0.04016914]
[1745368845789,0.11098934,93072.0,93061.0,0.35074563]
[1745368845790,0.10830305,93072.0,93061.0,0.35074563]
[1745368846001,0.10830305,93072.0,93061.0,0.38298544]
[1745368846518,0.00268629,93071.0,93061.0,0.37323981]
[1745368846665,0.10830305,93070.0,93061.0,0.03323981]
[1745368846882,0.00268629,93069.0,93062.0,0.00752443]
[1745368847150,0.10830305,93068.0,93062.0,0.00752443]
[1745368847363,0.10830305,93068.0,93063.0,0.00752443]
[1745368848163,0.0487,93063.0,93061.0,0.03323981]
[1745368848407,0.15968948,93063.0,93061.0,0.03223981]
[1745368848786,0.15968948,93063.0,93061.0,0.001]
[1745368849223,0.15968948,93063.0,93058.0,0.0004248]
[1745368849527,0.16168948,93063.0,93061.0,0.001]
[1745368849909,0.15968948,93063.0,93058.0,0.0004248]
[1745368850114,0.15968948,93063.0,93058.0,0.03158419]
[1745368850308,0.15968948,93063.0,93059.0,0.00752994]
[1745368850516,0.004,93063.0,93061.0,0.001]
[1745368850717,0.003,93063.0,93062.0,0.06447314]
[1745368850883,0.003,93063.0,93062.0,0.07200308]
[1745368851093,0.003,93063.0,93062.0,0.00752994]
[1745368851922,0.0487,93078.0,93062.0,0.00752994]
[1745368852102,0.0487,93086.0,93074.0,0.06446479]
[1745368852323,0.0487,93086.0,93073.0,0.07520944]
[1745368852525,0.0487,93086.0,93073.0,0.01074425]
[1745368852733,0.0487,93086.0,93074.0,0.00752994]
[1745368853188,0.41499999,93076.0,93074.0,0.00752994]
[1745368853606,0.41199999,93076.0,93075.0,0.00752994]
[1745368854857,0.003,93076.0,93075.0,0.00752994]
[1745368855436,0.01074321,93082.0,93075.0,0.00752994]
[1745368855650,0.003,93076.0,93075.0,0.00852994]
[1745368856058,0.12173232,93081.0,93075.0,0.00752994]
[1745368856437,0.12173232,93081.0,93075.0,0.00852994]
[1745368856642,0.004,93076.0,93075.0,0.00952994]
[1745368856852,0.004,93076.0,93062.0,0.0752186]
[1745368857067,0.004,93076.0,93065.0,0.01074517]
[1745368857298,0.004,93076.0,93066.0,0.27306118]
[1745368857506,0.005,93076.0,93066.0,0.27306118]
[1745368857928,0.001,93076.0,93066.0,0.27306118]
[1745368858138,0.001,93076.0,93075.0,0.001]
[1745368858665,0.11098899,93081.0,93066.0,0.27306118]
[1745368858883,0.003,93076.0,93066.0,0.27406118]
[1745368859410,0.002,93076.0,93066.0,0.27306118]
[1745368859610,0.006,93076.0,93075.0,0.001]
[1745368861477,0.0107439,93076.0,93061.0,0.34]
[1745368861700,0.0107439,93076.0,93066.0,0.001]
[1745368861701,0.22862304,93076.0,93066.0,0.001]
[1745368861924,0.01074413,93074.0,93066.0,0.001]
[1745368862121,0.1190473,93073.0,93060.0,0.27306118]
[1745368862585,0.10830305,93073.0,93060.0,0.27306118]
[1745368862994,0.1109892,93073.0,93060.0,0.27306118]
[1745368863405,0.1129892,93073.0,93060.0,0.27306118]
[1745368863605,0.11030305,93073.0,93060.0,0.27506118]
[1745368864042,0.1129892,93073.0,93060.0,0.27506118]
[1745368864254,0.01074471,93069.0,93061.0,0.34]
[1745368864457,0.0475,93069.0,93061.0,0.34]
[1745368865651,0.0525,93069.0,93061.0,0.341]
[1745368866057,0.0475,93069.0,93061.0,0.34]
[1745368866282,0.0475,93069.0,93061.0,0.341]
[1745368866487,0.0515,93069.0,93061.0,0.341]
[1745368867619,0.06224471,93069.0,93061.0,0.341]
[1745368868043,0.01074517,93065.0,93061.0,0.001]
[1745368868243,0.0134315,93065.0,93061.0,0.001]
[1745368868384,0.01074517,93065.0,93061.0,0.001]
[1745368869015,0.10830305,93068.0,93058.0,0.03158419]
[1745368869252,0.002,93065.0,93059.0,0.34]
[1745368869624,0.0475,93069.0,93060.0,0.00752982]
[1745368870041,0.009,93065.0,93061.0,0.001]
[1745368870243,0.007,93065.0,93061.0,0.00852982]
[1745368870580,0.007,93065.0,93062.0,0.00752982]
[1745368871011,0.16654776,93069.0,93062.0,0.00752982]
[1745368871237,0.16654776,93069.0,93063.0,0.00752982]
[1745368871701,0.003,93065.0,93063.0,0.00752982]
[1745368871875,0.003,93065.0,93064.0,0.00752982]
[1745368872109,0.001,93065.0,93064.0,0.00752982]
[1745368872790,0.01074494,93067.0,93064.0,0.00752982]
[1745368873017,0.01074494,93067.0,93065.0,0.00752982]
[1745368873780,0.01074494,93067.0,93066.0,0.00752982]
[1745368874391,0.01343109,93068.0,93066.0,0.00752982]
[1745368874983,0.10830305,93067.0,93066.0,0.00752982]
[1745368875185,0.11530305,93067.0,93066.0,0.00852982]
[1745368875418,0.11798954,93067.0,93066.0,0.00852982]
[1745368875731,0.11198954,93067.0,93066.0,0.00752982]
[1745368875931,0.11198954,93067.0,93066.0,0.00852982]
[1745368876166,0.11198954,93067.0,93066.0,0.001]
[1745368876167,0.11098954,93067.0,93066.0,0.001]
[1745368876590,0.11298954,93067.0,93066.0,0.001]
[1745368876791,0.11030305,93067.0,93066.0,0.001]
[1745368876994,0.11298954,93067.0,93066.0,0.00852982]
[1745368877202,0.11298954,93067.0,93066.0,0.00752982]
[1745368877427,0.2149151,93060.0,93059.0,0.00752982]
[1745368877713,0.42330485,93060.0,93059.0,0.00752982]
[1745368877903,0.42061815,93060.0,93059.0,0.00752982]
[1745368878128,0.0974,93059.0,93058.0,0.0004248]
[1745368878340,0.20839007,93059.0,93058.0,0.0004248]
[1745368879193,0.21539007,93059.0,93058.0,0.0004248]
[1745368880479,0.72788157,93059.0,93058.0,0.0004248]
[1745368880698,0.62470304,93059.0,93058.0,0.0004248]
[1745368881135,0.63670304,93059.0,93058.0,0.0014248]
[1745368881576,0.63670304,93059.0,93058.0,0.0004248]
[1745368881577,0.61770304,93059.0,93058.0,0.0004248]
[1745368881783,0.83262045,93059.0,93058.0,0.0004248]
[1745368881990,0.85062045,93059.0,93058.0,0.0014248]
[1745368882419,0.83262045,93059.0,93058.0,0.0004248]
[1745368882622,0.85462045,93059.0,93058.0,0.0024248]
[1745368883953,0.84662045,93059.0,93058.0,0.0014248]
[1745368884370,0.83562045,93059.0,93058.0,0.0004248]
[1745368884718,0.85162045,93059.0,93058.0,0.0014248]
[1745368885121,0.84562045,93059.0,93058.0,0.0014248]
[1745368885382,0.84862045,93059.0,93058.0,0.0014248]
[1745368887091,0.63370304,93059.0,93058.0,0.0014248]
[1745368887454,0.016,93059.0,93058.0,0.0014248]
[1745368888491,0.003,93059.0,93058.0,0.0004248]
[1745368888702,0.001,93067.0,93059.0,0.06447522]
[1745368889775,0.001,93067.0,93059.0,0.07522109]
[1745368890193,0.001,93067.0,93064.0,0.06447161]
[1745368890438,0.001,93067.0,93066.0,0.07901122]
[1745368890627,0.004,93067.0,93066.0,0.07901122]
[1745368890846,0.015,93067.0,93066.0,0.07901122]
[1745368891290,0.012,93067.0,93066.0,0.86881122]
[1745368891503,0.04604054,93085.0,93068.0,0.01074483]
[1745368891739,0.11098897,93084.0,93071.0,0.34]
[1745368891947,0.0107431,93083.0,93071.0,0.34]
[1745368892155,0.11098897,93082.0,93071.0,0.34]
[1745368893966,0.11098897,93082.0,93071.0,0.341]
[1745368894343,0.11098897,93082.0,93071.0,0.34]
[1745368894795,0.12198897,93082.0,93071.0,0.341]
[1745368895421,0.12398897,93082.0,93071.0,0.341]
[1745368898056,0.12398897,93082.0,93071.0,0.001]
[1745368898239,0.12398897,93082.0,93071.0,0.341]
[1745368898604,0.13473218,93082.0,93071.0,0.341]
[1745368899068,0.26078739,93072.0,93071.0,0.341]
[1745368899269,0.20010305,93072.0,93071.0,0.001]
[1745368899673,0.20278927,93072.0,93071.0,0.001]
[1745368899902,0.20278927,93072.0,93061.0,0.34]
[1745368900219,0.10730305,93071.0,93061.0,0.34]
[1745368900425,0.00268622,93070.0,93061.0,0.34]
[1745368900701,0.10830305,93069.0,93061.0,0.34]
[1745368900909,0.10830305,93069.0,93060.0,0.34]
[1745368901111,0.10830305,93069.0,93061.0,0.001]
[1745368902453,0.10830305,93069.0,93060.0,0.34]
[1745368902807,0.01074483,93068.0,93061.0,0.002]
[1745368902984,0.12704776,93069.0,93061.0,0.002]
[1745368903225,0.11904776,93069.0,93061.0,0.001]
[1745368903426,0.10830305,93069.0,93061.0,0.001]
[1745368903684,0.11530305,93069.0,93061.0,0.001]
[1745368903889,0.01074483,93068.0,93061.0,0.001]
[1745368904091,0.12173398,93069.0,93060.0,0.34]
[1745368904292,0.11098927,93069.0,93060.0,0.341]
[1745368904493,0.11630305,93069.0,93061.0,0.001]
[1745368904705,0.12704776,93069.0,93061.0,0.001]
[1745368904978,0.11630305,93069.0,93061.0,0.002]
[1745368905161,0.11630305,93069.0,93061.0,0.001]
[1745368905612,0.01074517,93065.0,93061.0,0.001]
[1745368905822,0.01074506,93066.0,93053.0,0.01454085]
[1745368906037,0.01074506,93066.0,93052.0,0.0004248]
[1745368906038,0.0107454,93063.0,93061.0,0.001]
[1745368906670,0.22565377,93063.0,93060.0,0.001]
[1745368906881,0.22565377,93063.0,93061.0,0.001]
[1745368907503,0.01074563,93061.0,93052.0,0.0004248]
[1745368907707,0.22365996,93061.0,93052.0,0.0004248]
[1745368908540,0.32590673,93060.0,93052.0,0.0004248]
[1745368908735,0.0481,93059.0,93052.0,0.0004248]
[1745368908937,0.15640305,93059.0,93052.0,0.0004248]
[1745368909162,0.15540305,93059.0,93052.0,0.0004248]
[1745368910093,0.001,93063.0,93052.0,0.0004248]
[1745368910308,0.10830305,93062.0,93052.0,0.0004248]
[1745368910512,0.009,93059.0,93058.0,0.0014248]
[1745368912115,0.0588446,93070.0,93058.0,0.0004248]
[1745368912325,0.10830305,93069.0,93061.0,0.34]
[1745368912542,0.01,93063.0,93061.0,0.34]
[1745368913146,0.10830305,93069.0,93061.0,0.34]
[1745368914993,0.01,93063.0,93061.0,0.341]
[1745368915568,0.001,93069.0,93061.0,0.34]
[1745368915818,0.011,93069.0,93061.0,0.001]
[1745368916444,0.001,93069.0,93058.0,0.0014289]
[1745368916733,0.01,93063.0,93061.0,0.001]
[1745368917093,0.011,93063.0,93061.0,0.001]
[1745368917700,0.0497,93083.0,93068.0,0.01074483]
[1745368917935,0.10830305,93082.0,93074.0,0.34]
[1745368918385,0.00268592,93081.0,93074.0,0.34]
[1745368918590,0.10830305,93080.0,93074.0,0.34]
[1745368918964,0.10830305,93080.0,93071.0,0.34]
[1745368919801,0.10830305,93080.0,93074.0,0.001]
[1745368919993,0.11098897,93080.0,93074.0,0.001]
[1745368920240,0.11098897,93080.0,93071.0,0.34]
[1745368920456,0.12298897,93080.0,93071.0,0.341]
[1745368920658,0.13373241,93080.0,93072.0,0.01223423]
[1745368920868,0.12298897,93080.0,93071.0,0.341]
[1745368921080,0.12330305,93080.0,93071.0,0.341]
[1745368921231,0.12598897,93080.0,93071.0,0.341]
[1745368921432,0.12330305,93080.0,93071.0,0.341]
[1745368921640,0.12430305,93080.0,93071.0,0.341]
[1745368921846,0.12430305,93080.0,93071.0,0.001]
[1745368922219,0.12430305,93080.0,93050.0,0.01117181]
[1745368922220,0.01074494,93067.0,93050.0,0.01117181]
[1745368922439,0.0497,93071.0,93058.0,0.3404248]
[1745368922652,0.15800305,93071.0,93058.0,0.3404248]
[1745368923860,0.17074753,93071.0,93058.0,0.3414248]
[1745368924072,0.16000305,93071.0,93058.0,0.3414248]
[1745368925762,0.15638922,93070.0,93058.0,0.3414248]
[1745368926431,0.15370305,93070.0,93058.0,0.3414248]
[1745368926888,0.15970305,93070.0,93058.0,0.3414248]
[1745368927122,0.15970305,93070.0,93058.0,0.3404248]
[1745368927345,0.15970305,93070.0,93058.0,0.3414248]
[1745368929996,0.15970305,93070.0,93065.0,0.01074517]
[1745368930206,0.15970305,93070.0,93061.0,0.34]
[1745368930622,0.16238925,93070.0,93061.0,0.34]
[1745368931239,0.16238925,93070.0,93060.0,0.01074575]
[1745368931498,0.16238925,93070.0,93061.0,0.001]
[1745368931710,0.15638925,93070.0,93061.0,0.001]
[1745368931921,0.01074483,93068.0,93061.0,0.001]
[1745368932136,0.11098941,93067.0,93065.0,0.001]
[1745368932467,0.01074506,93066.0,93061.0,0.001]
[1745368932850,0.11098941,93065.0,93061.0,0.001]
[1745368933054,0.21491048,93062.0,93061.0,0.001]
[1745368933205,0.32590012,93062.0,93060.0,0.001]
[1745368933566,0.32590012,93062.0,93058.0,0.0004248]
[1745368933567,0.11804868,93061.0,93058.0,0.0004248]
[1745368933781,0.007,93066.0,93063.0,0.07521785]
[1745368934628,0.007,93066.0,93065.0,0.06447106]
[1745368934839,0.0458,93072.0,93064.0,0.34]
[1745368935074,0.0458,93072.0,93070.0,0.06446757]
[1745368935274,0.41199999,93081.0,93079.0,0.06446137]
[1745368935489,0.41199999,93081.0,93075.0,0.34]
[1745368935710,0.41199999,93081.0,93076.0,0.07520734]
[1745368935954,0.41199999,93081.0,93076.0,0.06446344]
[1745368936166,0.41199999,93081.0,93075.0,0.34]
[1745368936576,0.41299999,93081.0,93075.0,0.34]
[1745368936792,0.41699999,93081.0,93075.0,0.341]
[1745368937394,0.11098886,93080.0,93075.0,0.341]
[1745368937602,0.11098886,93080.0,93075.0,0.001]
[1745368937805,0.0458,93079.0,93075.0,0.001]
[1745368938005,0.11098912,93078.0,93075.0,0.001]
[1745368938213,0.11098912,93078.0,93071.0,0.34]
[1745368938620,0.11098912,93078.0,93075.0,0.001]
[1745368939035,0.11098912,93078.0,93071.0,0.34]
[1745368939453,0.11698912,93078.0,93071.0,0.341]
[1745368939750,0.11098912,93078.0,93071.0,0.34]
[1745368939886,0.11198912,93078.0,93071.0,0.34]
[1745368940086,0.11098912,93078.0,93071.0,0.34]
[1745368941234,0.11798912,93078.0,93075.0,0.001]
[1745368941608,0.11798912,93078.0,93071.0,0.34]
[1745368941847,0.11098912,93078.0,93071.0,0.34]
[1745368942720,0.11698912,93078.0,93071.0,0.341]
[1745368943346,0.11798912,93078.0,93071.0,0.341]
[1745368943779,0.11698912,93078.0,93071.0,0.341]
[1745368944611,0.046,93075.0,93071.0,0.341]
[1745368944833,0.21488739,93072.0,93071.0,0.001]
[1745368945063,0.32587681,93072.0,93071.0,0.001]
[1745368945278,0.32319044,93072.0,93071.0,0.001]
[1745368945761,0.0107446,93070.0,93061.0,0.34]
[1745368945962,0.11098943,93069.0,93061.0,0.34]
[1745368947215,0.11098943,93069.0,93061.0,0.341]
[1745368947391,0.10830305,93069.0,93061.0,0.341]
[1745368947593,0.00268637,93068.0,93061.0,0.341]
[1745368947796,0.10830305,93067.0,93061.0,0.341]
[1745368947997,0.00268637,93066.0,93061.0,0.341]
[1745368948211,0.10830305,93065.0,93061.0,0.342]
[1745368948543,0.00268637,93064.0,93061.0,0.341]
[1745368948839,0.11098942,93064.0,93061.0,0.001]
[1745368949042,0.11098942,93064.0,93061.0,0.002]
[1745368949246,0.11098942,93064.0,93061.0,0.001]
[1745368949417,0.11098942,93064.0,93061.0,0.002]
[1745368949836,0.11098942,93064.0,93061.0,0.001]
[1745368950443,0.11498942,93064.0,93061.0,0.002]
[1745368953170,0.004,93064.0,93061.0,0.01274563]
[1745368953374,0.004,93064.0,93062.0,0.06447314]
[1745368953587,0.004,93064.0,93061.0,0.01274563]
[1745368954264,0.0492,93074.0,93061.0,0.001]
[1745368954400,0.0492,93074.0,93065.0,0.34]
[1745368956185,0.05994413,93074.0,93065.0,0.34]
[1745368956388,0.0492,93074.0,93065.0,0.34]
[1745368957431,0.0542,93074.0,93065.0,0.341]
[1745368957893,0.01074483,93068.0,93065.0,0.341]
[1745368958086,0.01074517,93065.0,93059.0,0.34]
[1745368958291,0.01074506,93066.0,93059.0,0.34]
[1745368958708,0.38343806,93065.0,93059.0,0.34]
[1745368958946,0.16584822,93065.0,93059.0,0.34]
[1745368959157,0.16584822,93065.0,93058.0,0.0004248]
[1745368959158,0.21491741,93059.0,93058.0,0.0004248]
[1745368959366,0.36992046,93059.0,93058.0,0.0004248]
[1745368959996,0.36892046,93059.0,93058.0,0.0004248]
[1745368961026,0.37492046,93059.0,93058.0,0.0014248]
[1745368961791,0.37692046,93059.0,93058.0,0.0014248]
[1745368962417,0.42192046,93059.0,93058.0,0.0014248]
[1745368965818,0.42292046,93059.0,93058.0,0.0014248]
[1745368966667,0.41692046,93059.0,93058.0,0.0004248]
[1745368967095,0.82892045,93059.0,93058.0,0.0004248]
[1745368967499,0.84092045,93059.0,93058.0,0.0014248]
[1745368967896,0.82892045,93059.0,93058.0,0.0004248]
[1745368968133,0.82692045,93059.0,93058.0,0.0004248]
[1745368968342,0.82692045,93059.0,93050.0,0.0004249]
[1745368968343,0.21493127,93053.0,93050.0,0.0004249]
[1745368968546,0.82802175,93053.0,93050.0,0.0004249]
[1745368968726,0.82533431,93053.0,93050.0,0.0004249]
[1745368968986,0.82433431,93053.0,93050.0,0.0004249]
[1745368969561,0.82938462,93053.0,93052.0,0.0014248]
[1745368969774,0.82438462,93053.0,93052.0,0.0004248]
[1745368969967,0.83738462,93053.0,93052.0,0.0004248]
[1745368971114,0.84538462,93053.0,93052.0,0.0014248]
[1745368971332,0.0901,93052.0,93050.0,0.0004249]
[1745368971501,0.20109072,93052.0,93050.0,0.0004249]
[1745368972693,0.21495206,93044.0,93042.0,0.0004249]
[1745368972921,0.51740281,93044.0,93042.0,0.0004249]
[1745368973121,0.51471511,93044.0,93042.0,0.0004249]
[1745368973979,0.52671511,93044.0,93042.0,0.0004249]
[1745368974601,0.53271511,93044.0,93043.0,0.0014249]
[1745368975200,0.9447151,93044.0,93043.0,0.0014249]
[1745368977935,0.8433551,93044.0,93043.0,0.0014249]
[1745368978142,0.9446751,93044.0,93043.0,0.0014249]
[1745368983172,0.01075072,93017.0,93011.0,0.34]
[1745368983398,0.01075106,93014.0,93011.0,0.34]
[1745368983613,0.01075095,93015.0,93011.0,0.34]